[Event "*** SCC Grand Prix: Titled Tuesday Blitz"]
[Site "Chess.com"]
[Date "2020.06.02"]
[Round "5"]
[White "AnishGiri"]
[Black "VladimirBelous"]
[Result "1/2-1/2"]
[WhiteElo "2972"]
[BlackElo "2742"]
[TimeControl "180+1"]
[EndTime "11:00:17 PDT"]
[Termination "Game drawn - insufficient material"]

1. e4 {[%clk 0:03:00.9]} 1... c5 {[%clk 0:03:00.1]} 2. Nf3 {[%clk 0:03:01.3]}
2... Nc6 {[%clk 0:03:00.6]} 3. Bb5 {[%clk 0:03:00.8]} 3... d6 {[%clk 0:02:57.9]}
4. O-O {[%clk 0:03:00.5]} 4... Bd7 {[%clk 0:02:57.6]} 5. Re1 {[%clk 0:03:00.9]}
5... g6 {[%clk 0:02:51.6]} 6. c3 {[%clk 0:02:59.7]} 6... a6 {[%clk 0:02:39.2]}
7. Bxc6 {[%clk 0:02:48.5]} 7... Bxc6 {[%clk 0:02:39.5]} 8. d4 {[%clk 0:02:49.2]}
8... cxd4 {[%clk 0:02:39.8]} 9. cxd4 {[%clk 0:02:48.7]} 9... Bg7 {[%clk
0:02:39.4]} 10. Nc3 {[%clk 0:02:48.6]} 10... Nf6 {[%clk 0:02:38.4]} 11. h3
{[%clk 0:02:42.3]} 11... O-O {[%clk 0:02:38.1]} 12. Bf4 {[%clk 0:02:42.3]} 12...
Rc8 {[%clk 0:02:34.8]} 13. Qd2 {[%clk 0:02:41.9]} 13... b5 {[%clk 0:02:06]} 14.
a3 {[%clk 0:02:39.7]} 14... Bb7 {[%clk 0:02:03]} 15. Bh6 {[%clk 0:02:26.6]}
15... Nd7 {[%clk 0:01:57.8]} 16. Rad1 {[%clk 0:02:20.7]} 16... e6 {[%clk
0:01:51.2]} 17. Bxg7 {[%clk 0:02:12.6]} 17... Kxg7 {[%clk 0:01:52.1]} 18. Qe3
{[%clk 0:02:06.4]} 18... Qe7 {[%clk 0:01:48.9]} 19. Re2 {[%clk 0:02:06.3]} 19...
Nb6 {[%clk 0:01:47.3]} 20. b3 {[%clk 0:01:59.1]} 20... d5 {[%clk 0:01:46.3]} 21.
e5 {[%clk 0:01:39.5]} 21... Qxa3 {[%clk 0:01:46.2]} 22. Nh2 {[%clk 0:01:37]}
22... h5 {[%clk 0:01:21.9]} 23. Nb1 {[%clk 0:01:36.8]} 23... Qe7 {[%clk
0:01:19.5]} 24. Qd2 {[%clk 0:01:33.3]} 24... b4 {[%clk 0:01:17.4]} 25. Re3
{[%clk 0:01:29.4]} 25... a5 {[%clk 0:01:15.1]} 26. Rf3 {[%clk 0:01:29.1]} 26...
a4 {[%clk 0:01:09.1]} 27. bxa4 {[%clk 0:01:29.1]} 27... Rc4 {[%clk 0:01:06.4]}
28. a5 {[%clk 0:01:26.8]} 28... Nd7 {[%clk 0:01:03.8]} 29. Qb2 {[%clk
0:01:18.2]} 29... Rfc8 {[%clk 0:01:01.1]} 30. Nd2 {[%clk 0:01:11.3]} 30... Rc2
{[%clk 0:00:59.7]} 31. Qb3 {[%clk 0:01:09.1]} 31... Ba6 {[%clk 0:00:55.5]} 32.
Nhf1 {[%clk 0:01:05.6]} 32... Be2 {[%clk 0:00:54.6]} 33. Rb1 {[%clk 0:01:02]}
33... Bxf3 {[%clk 0:00:53.3]} 34. Nxf3 {[%clk 0:01:02.9]} 34... R8c3 {[%clk
0:00:45.4]} 35. Qxb4 {[%clk 0:01:03]} 35... Qxb4 {[%clk 0:00:45.1]} 36. Rxb4
{[%clk 0:01:03.9]} 36... Nf8 {[%clk 0:00:40.6]} 37. Ne3 {[%clk 0:00:39]} 37...
Rc1+ {[%clk 0:00:40.2]} 38. Kh2 {[%clk 0:00:38.8]} 38... Rc7 {[%clk 0:00:40.8]}
39. Ra4 {[%clk 0:00:36.2]} 39... Ra7 {[%clk 0:00:39.5]} 40. g4 {[%clk
0:00:36.2]} 40... hxg4 {[%clk 0:00:36.6]} 41. hxg4 {[%clk 0:00:33.9]} 41... Rc6
{[%clk 0:00:34.9]} 42. Nd2 {[%clk 0:00:33.7]} 42... Rc3 {[%clk 0:00:31.4]} 43.
Kg2 {[%clk 0:00:29.3]} 43... Nh7 {[%clk 0:00:29.8]} 44. Nf3 {[%clk 0:00:21.3]}
44... Rc6 {[%clk 0:00:28.6]} 45. Nd2 {[%clk 0:00:21]} 45... Ng5 {[%clk
0:00:26.4]} 46. Nb3 {[%clk 0:00:18.3]} 46... Ne4 {[%clk 0:00:23.9]} 47. Rb4
{[%clk 0:00:17.6]} 47... Rc3 {[%clk 0:00:19.8]} 48. Rb8 {[%clk 0:00:16.9]} 48...
Rac7 {[%clk 0:00:18.8]} 49. g5 {[%clk 0:00:13.9]} 49... Nxg5 {[%clk 0:00:18]}
50. Ng4 {[%clk 0:00:14.4]} 50... Ne4 {[%clk 0:00:18]} 51. a6 {[%clk 0:00:15]}
51... Ra7 {[%clk 0:00:12.8]} 52. Nc5 {[%clk 0:00:15.6]} 52... Nxc5 {[%clk
0:00:10.3]} 53. dxc5 {[%clk 0:00:12.6]} 53... g5 {[%clk 0:00:10.5]} 54. Nf6
{[%clk 0:00:10.4]} 54... Kg6 {[%clk 0:00:11]} 55. Ne8 {[%clk 0:00:04.2]} 55...
Rxc5 {[%clk 0:00:09.2]} 56. Nd6 {[%clk 0:00:04.8]} 56... d4 {[%clk 0:00:06]} 57.
Rb7 {[%clk 0:00:03]} 57... Rxa6 {[%clk 0:00:05.7]} 58. Nxf7 {[%clk 0:00:03.2]}
58... Kf5 {[%clk 0:00:03.7]} 59. Rd7 {[%clk 0:00:01.1]} 59... Rd5 {[%clk
0:00:03.8]} 60. Rc7 {[%clk 0:00:01.3]} 60... Ke4 {[%clk 0:00:04.2]} 61. Rc1
{[%clk 0:00:01.7]} 61... d3 {[%clk 0:00:04.5]} 62. Nxg5+ {[%clk 0:00:02.2]}
62... Kxe5 {[%clk 0:00:05]} 63. Nf3+ {[%clk 0:00:02.8]} 63... Kf5 {[%clk
0:00:05.7]} 64. Rd1 {[%clk 0:00:03.2]} 64... d2 {[%clk 0:00:06.2]} 65. Rxd2
{[%clk 0:00:03]} 65... Rxd2 {[%clk 0:00:06.7]} 66. Nxd2 {[%clk 0:00:03.9]} 66...
e5 {[%clk 0:00:07.4]} 67. Kf3 {[%clk 0:00:04]} 67... Ra3+ {[%clk 0:00:07.9]} 68.
Ke2 {[%clk 0:00:04.5]} 68... Kf4 {[%clk 0:00:08.5]} 69. Nf1 {[%clk 0:00:03.9]}
69... Ra2+ {[%clk 0:00:08.8]} 70. Nd2 {[%clk 0:00:04.6]} 70... e4 {[%clk
0:00:09.2]} 71. Ke1 {[%clk 0:00:05.2]} 71... Rb2 {[%clk 0:00:08.5]} 72. Ke2
{[%clk 0:00:05.7]} 72... Ra2 {[%clk 0:00:08.6]} 73. Ke1 {[%clk 0:00:06.4]} 73...
Ke5 {[%clk 0:00:09.2]} 74. Kd1 {[%clk 0:00:05.4]} 74... Kd4 {[%clk 0:00:08.6]}
75. Nb3+ {[%clk 0:00:04.6]} 75... Kd5 {[%clk 0:00:06.7]} 76. Nd2 {[%clk
0:00:04.5]} 76... Kd4 {[%clk 0:00:06.6]} 77. Nb3+ {[%clk 0:00:04.8]} 77... Ke5
{[%clk 0:00:07.1]} 78. Nd2 {[%clk 0:00:04.9]} 78... Rb2 {[%clk 0:00:06.2]} 79.
Nc4+ {[%clk 0:00:04.6]} 79... Kf4 {[%clk 0:00:05.6]} 80. Nxb2 {[%clk 0:00:05.5]}
80... e3 {[%clk 0:00:06.1]} 81. Nd3+ {[%clk 0:00:03.6]} 81... Kf3 {[%clk
0:00:05.7]} 82. fxe3 {[%clk 0:00:04.2]} 82... Kxe3 {[%clk 0:00:06.2]} 1/2-1/2

[Event "*** SCC Grand Prix: Titled Tuesday Blitz"]
[Site "Chess.com"]
[Date "2020.06.02"]
[Round "5"]
[White "JiaHaoxiang"]
[Black "tigra"]
[Result "0-1"]
[WhiteElo "2560"]
[BlackElo "2728"]
[TimeControl "180+1"]
[EndTime "11:00:21 PDT"]
[Termination "tigra won by resignation"]

1. Nf3 {[%clk 0:03:00.9]} 1... Nf6 {[%clk 0:02:59.3]} 2. c4 {[%clk 0:02:56.6]}
2... c5 {[%clk 0:02:58]} 3. g3 {[%clk 0:02:51.6]} 3... d5 {[%clk 0:02:58.3]} 4.
cxd5 {[%clk 0:02:46.9]} 4... Nxd5 {[%clk 0:02:59.2]} 5. Bg2 {[%clk 0:02:47.5]}
5... Nc7 {[%clk 0:02:57]} 6. O-O {[%clk 0:02:47.7]} 6... Nc6 {[%clk 0:02:56.9]}
7. d3 {[%clk 0:02:48.1]} 7... e5 {[%clk 0:02:56.7]} 8. Nc3 {[%clk 0:02:47.8]}
8... Be7 {[%clk 0:02:56.4]} 9. a3 {[%clk 0:02:47]} 9... Rb8 {[%clk 0:02:55.9]}
10. b4 {[%clk 0:02:44.3]} 10... cxb4 {[%clk 0:02:55.7]} 11. axb4 {[%clk
0:02:44.7]} 11... Bxb4 {[%clk 0:02:56.4]} 12. Bb2 {[%clk 0:02:44.8]} 12... O-O
{[%clk 0:02:53.1]} 13. Ne4 {[%clk 0:02:38.8]} 13... Re8 {[%clk 0:02:40.4]} 14.
Qa4 {[%clk 0:02:34.8]} 14... a5 {[%clk 0:02:32.9]} 15. Rfc1 {[%clk 0:02:31.7]}
15... Bg4 {[%clk 0:02:30.9]} 16. Qc2 {[%clk 0:02:16.1]} 16... Ne6 {[%clk
0:01:58]} 17. e3 {[%clk 0:01:57.2]} 17... Rc8 {[%clk 0:01:44.9]} 18. Qb3 {[%clk
0:01:49.2]} 18... Bxf3 {[%clk 0:01:41.4]} 19. Bxf3 {[%clk 0:01:48.9]} 19... Qd7
{[%clk 0:01:28.9]} 20. Be2 {[%clk 0:01:45.3]} 20... h6 {[%clk 0:01:23.4]} 21. h4
{[%clk 0:01:45.2]} 21... f5 {[%clk 0:01:18.7]} 22. Nc5 {[%clk 0:01:39.9]} 22...
Bxc5 {[%clk 0:01:14]} 23. Rxc5 {[%clk 0:01:40.8]} 23... Kh7 {[%clk 0:01:14.2]}
24. Rb5 {[%clk 0:01:32.9]} 24... Rc7 {[%clk 0:01:09.3]} 25. Bxe5 {[%clk
0:01:21.9]} 25... Nxe5 {[%clk 0:00:51.5]} 26. Rxe5 {[%clk 0:01:22.8]} 26... Nc5
{[%clk 0:00:41.4]} 27. Qd5 {[%clk 0:01:16.2]} 27... Rxe5 {[%clk 0:00:25.3]} 28.
Qxe5 {[%clk 0:01:15.4]} 28... Nb3 {[%clk 0:00:22.5]} 29. Rb1 {[%clk 0:01:08.7]}
29... Rc1+ {[%clk 0:00:21]} 30. Rxc1 {[%clk 0:01:05.5]} 30... Nxc1 {[%clk
0:00:21.9]} 31. Bf3 {[%clk 0:00:41.7]} 31... a4 {[%clk 0:00:16.5]} 32. g4 {[%clk
0:00:30.9]} 32... Nxd3 {[%clk 0:00:13.1]} 33. Qa5 {[%clk 0:00:27.6]} 33... b5
{[%clk 0:00:09.6]} 34. Be2 {[%clk 0:00:22.1]} 34... Ne5 {[%clk 0:00:09.2]} 35.
Bxb5 {[%clk 0:00:21]} 35... Qd5 {[%clk 0:00:05.9]} 36. Qxa4 {[%clk 0:00:19.8]}
36... Nf3+ {[%clk 0:00:06]} 37. Kf1 {[%clk 0:00:19.8]} 37... Nh2+ {[%clk
0:00:03.1]} 38. Kg1 {[%clk 0:00:18.6]} 38... Nf3+ {[%clk 0:00:03.6]} 39. Kf1
{[%clk 0:00:18.9]} 39... fxg4 {[%clk 0:00:03.8]} 40. Qc2+ {[%clk 0:00:16.8]}
40... g6 {[%clk 0:00:04.1]} 41. Qc7+ {[%clk 0:00:16.1]} 41... Kg8 {[%clk
0:00:04.5]} 42. Bc4 {[%clk 0:00:15.9]} 42... Nd2+ {[%clk 0:00:04.6]} 43. Kg1
{[%clk 0:00:15.5]} 43... Nxc4 {[%clk 0:00:04.7]} 44. Qb8+ {[%clk 0:00:15.8]}
44... Kf7 {[%clk 0:00:05.1]} 45. Qc7+ {[%clk 0:00:16.1]} 45... Ke6 {[%clk
0:00:05.2]} 46. Qc8+ {[%clk 0:00:15.3]} 46... Kd6 {[%clk 0:00:05.4]} 47. Qxg4
{[%clk 0:00:14.8]} 47... Ne5 {[%clk 0:00:04.6]} 48. Qb4+ {[%clk 0:00:14.3]}
48... Ke6 {[%clk 0:00:04.9]} 49. Qb6+ {[%clk 0:00:13.6]} 49... Qc6 {[%clk
0:00:05.2]} 50. Qb3+ {[%clk 0:00:10.2]} 50... Kf6 {[%clk 0:00:04.6]} 51. Qa3
{[%clk 0:00:08.1]} 51... Qe6 {[%clk 0:00:04.3]} 52. Qf8+ {[%clk 0:00:07.2]}
52... Nf7 {[%clk 0:00:04.7]} 53. Kf1 {[%clk 0:00:04.3]} 53... Qh3+ {[%clk
0:00:04.7]} 54. Ke1 {[%clk 0:00:04.5]} 54... Qxh4 {[%clk 0:00:05.6]} 55. Qe8
{[%clk 0:00:04.1]} 55... Qh1+ {[%clk 0:00:05.7]} 56. Ke2 {[%clk 0:00:04.1]}
56... Qd5 {[%clk 0:00:06.6]} 57. Qb8 {[%clk 0:00:03.5]} 57... Qe6 {[%clk
0:00:06.5]} 58. Qf4+ {[%clk 0:00:02.8]} 58... Kg7 {[%clk 0:00:06.5]} 59. Qd4+
{[%clk 0:00:03.4]} 59... Qf6 {[%clk 0:00:07.4]} 60. Qc4 {[%clk 0:00:03.8]} 60...
h5 {[%clk 0:00:07.7]} 61. Qc5 {[%clk 0:00:03.8]} 61... Qe5 {[%clk 0:00:07.5]}
62. Qc6 {[%clk 0:00:03.6]} 62... Qf6 {[%clk 0:00:07.9]} 63. Qc5 {[%clk
0:00:03.7]} 63... h4 {[%clk 0:00:08.3]} 64. Kf1 {[%clk 0:00:04.1]} 64... g5
{[%clk 0:00:08.4]} 65. Qc4 {[%clk 0:00:04]} 65... Qe5 {[%clk 0:00:08.6]} 66. Qg4
{[%clk 0:00:04]} 66... Qf6 {[%clk 0:00:08.9]} 67. Qc4 {[%clk 0:00:04.1]} 67...
Ne5 {[%clk 0:00:09.5]} 68. Qc7+ {[%clk 0:00:03.9]} 68... Kh6 {[%clk 0:00:10]}
69. Qc8 {[%clk 0:00:03.6]} 69... Ng6 {[%clk 0:00:09.8]} 70. Qc5 {[%clk
0:00:02.4]} 70... Qf3 {[%clk 0:00:09.7]} 71. Qd6 {[%clk 0:00:02.1]} 71... h3
{[%clk 0:00:09.8]} 72. Qh2 {[%clk 0:00:01.9]} 72... Kh5 {[%clk 0:00:09.3]} 73.
Ke1 {[%clk 0:00:01.9]} 73... Qg2 {[%clk 0:00:09.3]} 74. Qb8 {[%clk 0:00:01.6]}
74... h2 {[%clk 0:00:08]} 75. Qc7 {[%clk 0:00:01.8]} 75... h1=Q+ {[%clk
0:00:07.6]} 76. Kd2 {[%clk 0:00:02.7]} 76... Qxf2+ {[%clk 0:00:07.8]} 0-1

[Event "*** SCC Grand Prix: Titled Tuesday Blitz"]
[Site "Chess.com"]
[Date "2020.06.02"]
[Round "5"]
[White "anon569"]
[Black "Ranindu2003"]
[Result "0-1"]
[WhiteElo "2272"]
[BlackElo "2469"]
[TimeControl "180+1"]
[EndTime "11:00:26 PDT"]
[Termination "Ranindu2003 won on time"]

1. e4 {[%clk 0:03:00.9]} 1... g6 {[%clk 0:02:59.5]} 2. d4 {[%clk 0:03:00]} 2...
Bg7 {[%clk 0:02:59]} 3. Nc3 {[%clk 0:03:00.2]} 3... d6 {[%clk 0:02:58.7]} 4. Nf3
{[%clk 0:03:00.2]} 4... a6 {[%clk 0:02:58.3]} 5. a4 {[%clk 0:02:57.1]} 5... b6
{[%clk 0:02:56.4]} 6. Bf4 {[%clk 0:02:37.6]} 6... Bb7 {[%clk 0:02:54.6]} 7. Qd2
{[%clk 0:02:34.4]} 7... h6 {[%clk 0:02:53.4]} 8. h3 {[%clk 0:01:58]} 8... Nd7
{[%clk 0:02:46]} 9. Bc4 {[%clk 0:01:33.8]} 9... e6 {[%clk 0:02:42.3]} 10. O-O
{[%clk 0:01:32.3]} 10... Ne7 {[%clk 0:02:40.7]} 11. Rad1 {[%clk 0:01:25.7]}
11... g5 {[%clk 0:02:26.5]} 12. Bh2 {[%clk 0:01:20.3]} 12... Ng6 {[%clk
0:02:25]} 13. Qe3 {[%clk 0:01:16.6]} 13... Qe7 {[%clk 0:02:22.8]} 14. Bb3 {[%clk
0:00:56.2]} 14... O-O {[%clk 0:02:21.6]} 15. Rfe1 {[%clk 0:00:52.3]} 15... Rad8
{[%clk 0:02:11.7]} 16. Nd2 {[%clk 0:00:43.2]} 16... e5 {[%clk 0:02:06.9]} 17. d5
{[%clk 0:00:41.4]} 17... Kh7 {[%clk 0:01:54.7]} 18. Nf1 {[%clk 0:00:40.8]} 18...
Nc5 {[%clk 0:01:35]} 19. Bc4 {[%clk 0:00:32.8]} 19... Nh4 {[%clk 0:01:28.6]} 20.
Ng3 {[%clk 0:00:30]} 20... Bc8 {[%clk 0:01:25]} 21. b4 {[%clk 0:00:26.2]} 21...
Nxa4 {[%clk 0:01:21.1]} 22. Nxa4 {[%clk 0:00:23.5]} 22... b5 {[%clk 0:01:21.5]}
23. Bb3 {[%clk 0:00:23.5]} 23... bxa4 {[%clk 0:01:20.8]} 24. Bxa4 {[%clk
0:00:22.7]} 24... f5 {[%clk 0:01:20.6]} 25. exf5 {[%clk 0:00:21.6]} 25... Bxf5
{[%clk 0:01:20.2]} 26. c4 {[%clk 0:00:20.1]} 26... Kh8 {[%clk 0:01:13.8]} 27.
Nxf5 {[%clk 0:00:18.8]} 27... Nxf5 {[%clk 0:01:13.1]} 28. Qe4 {[%clk 0:00:18.6]}
28... Rf6 {[%clk 0:00:54.3]} 29. Bc2 {[%clk 0:00:18.5]} 29... Bf8 {[%clk
0:00:54.2]} 30. c5 {[%clk 0:00:15]} 30... Qg7 {[%clk 0:00:53.1]} 31. Ra1 {[%clk
0:00:10.6]} 31... Nd4 {[%clk 0:00:49.9]} 32. Bd3 {[%clk 0:00:10.1]} 32... Qf7
{[%clk 0:00:41]} 33. Rxa6 {[%clk 0:00:08.9]} 33... Rb8 {[%clk 0:00:35]} 34. Rea1
{[%clk 0:00:05.7]} 34... Rxb4 {[%clk 0:00:27.8]} 35. Kh1 {[%clk 0:00:06.2]}
35... Rxf2 {[%clk 0:00:25]} 36. Ra8 {[%clk 0:00:05.3]} 36... Qg7 {[%clk
0:00:19.2]} 37. cxd6 {[%clk 0:00:03.5]} 37... cxd6 {[%clk 0:00:18.9]} 38. Rd8
{[%clk 0:00:04]} 38... Nc6 {[%clk 0:00:15]} 39. dxc6 {[%clk 0:00:04.1]} 39...
Rxe4 {[%clk 0:00:14.5]} 40. Bxe4 {[%clk 0:00:04.7]} 40... Qe7 {[%clk 0:00:14.6]}
41. Bg1 {[%clk 0:00:05]} 41... Qxd8 {[%clk 0:00:13.8]} 42. Bxf2 {[%clk
0:00:03.6]} 42... d5 {[%clk 0:00:14.4]} 43. Bxd5 {[%clk 0:00:04.2]} 43... Qxd5
{[%clk 0:00:14.3]} 44. c7 {[%clk 0:00:04.2]} 44... Qc6 {[%clk 0:00:12.8]} 45.
Bb6 {[%clk 0:00:04.7]} 45... Bd6 {[%clk 0:00:10.5]} 46. Ra7 {[%clk 0:00:04.7]}
46... Bxc7 {[%clk 0:00:10]} 47. Bxc7 {[%clk 0:00:03.7]} 47... Qc1+ {[%clk
0:00:10.4]} 48. Kh2 {[%clk 0:00:03.9]} 48... Qf4+ {[%clk 0:00:11]} 49. Kh1
{[%clk 0:00:04.1]} 49... Qe3 {[%clk 0:00:11.6]} 50. Ra8+ {[%clk 0:00:03.2]}
50... Kg7 {[%clk 0:00:11]} 51. Re8 {[%clk 0:00:01.5]} 51... Qe1+ {[%clk
0:00:09.3]} 52. Kh2 {[%clk 0:00:01.7]} 52... e4 {[%clk 0:00:09.6]} 53. Re5
{[%clk 0:00:01.7]} 53... Kf7 {[%clk 0:00:06.4]} 54. Bd6 {[%clk 0:00:02]} 54...
Kf6 {[%clk 0:00:05.9]} 55. Bc5 {[%clk 0:00:02.6]} 55... Qc3 {[%clk 0:00:05.9]}
56. Rd5 {[%clk 0:00:01.6]} 56... Qc4 {[%clk 0:00:05.7]} 0-1

[Event "*** SCC Grand Prix: Titled Tuesday Blitz"]
[Site "Chess.com"]
[Date "2020.06.02"]
[Round "5"]
[White "UCantHandleDenker"]
[Black "BogdanBelyakov89"]
[Result "1-0"]
[WhiteElo "2488"]
[BlackElo "2643"]
[TimeControl "180+1"]
[EndTime "11:00:27 PDT"]
[Termination "UCantHandleDenker won by checkmate"]

1. Nf3 {[%clk 0:02:57.8]} 1... Nf6 {[%clk 0:02:59.8]} 2. g3 {[%clk 0:02:44.6]}
2... g6 {[%clk 0:02:59.4]} 3. Bg2 {[%clk 0:02:43.8]} 3... Bg7 {[%clk 0:02:58.8]}
4. O-O {[%clk 0:02:43.2]} 4... O-O {[%clk 0:02:59.7]} 5. d3 {[%clk 0:02:42.3]}
5... d6 {[%clk 0:02:59.6]} 6. Nbd2 {[%clk 0:02:43.2]} 6... Nbd7 {[%clk
0:02:58.8]} 7. e4 {[%clk 0:02:44.1]} 7... e5 {[%clk 0:02:58.8]} 8. a4 {[%clk
0:02:43.1]} 8... a5 {[%clk 0:02:58.5]} 9. Nc4 {[%clk 0:02:42.7]} 9... Nc5 {[%clk
0:02:58.2]} 10. Bd2 {[%clk 0:02:41.1]} 10... Bd7 {[%clk 0:02:57.6]} 11. b3
{[%clk 0:02:37.2]} 11... b6 {[%clk 0:02:57.4]} 12. Nh4 {[%clk 0:02:32.7]} 12...
Nh5 {[%clk 0:02:39.4]} 13. Nf5 {[%clk 0:02:28.7]} 13... gxf5 {[%clk 0:02:16.5]}
14. Qxh5 {[%clk 0:02:27]} 14... fxe4 {[%clk 0:02:16.8]} 15. dxe4 {[%clk
0:02:25.5]} 15... Ne6 {[%clk 0:02:07.7]} 16. Ne3 {[%clk 0:02:05.7]} 16... Qg5
{[%clk 0:02:05.5]} 17. Qxg5 {[%clk 0:01:55]} 17... Nxg5 {[%clk 0:02:06.4]} 18.
Nf5 {[%clk 0:01:55.2]} 18... Ne6 {[%clk 0:02:02.9]} 19. Nxg7 {[%clk 0:01:51.1]}
19... Kxg7 {[%clk 0:02:02.6]} 20. f4 {[%clk 0:01:25.2]} 20... f6 {[%clk
0:02:01.6]} 21. Be3 {[%clk 0:01:10.4]} 21... Nc5 {[%clk 0:01:59.7]} 22. Rae1
{[%clk 0:01:03.5]} 22... Bc6 {[%clk 0:01:59.4]} 23. Bc1 {[%clk 0:01:00.9]} 23...
Rae8 {[%clk 0:01:56.7]} 24. f5 {[%clk 0:00:59.2]} 24... Rd8 {[%clk 0:01:52.3]}
25. g4 {[%clk 0:00:54.6]} 25... d5 {[%clk 0:01:51.7]} 26. exd5 {[%clk
0:00:49.8]} 26... Bxd5 {[%clk 0:01:51.8]} 27. g5 {[%clk 0:00:48.2]} 27... Bxg2
{[%clk 0:01:47.6]} 28. Kxg2 {[%clk 0:00:47.7]} 28... Kf7 {[%clk 0:01:43]} 29. h4
{[%clk 0:00:43]} 29... Rd4 {[%clk 0:01:41.2]} 30. Kh3 {[%clk 0:00:36.6]} 30...
Nd7 {[%clk 0:01:06]} 31. Rg1 {[%clk 0:00:35.5]} 31... Rg8 {[%clk 0:01:02.4]} 32.
Ref1 {[%clk 0:00:34.6]} 32... Re4 {[%clk 0:00:59.3]} 33. Rf2 {[%clk 0:00:32]}
33... Nb8 {[%clk 0:00:48.8]} 34. Rg4 {[%clk 0:00:28.5]} 34... Re1 {[%clk
0:00:44.2]} 35. Bd2 {[%clk 0:00:28.3]} 35... Rh1+ {[%clk 0:00:41.8]} 36. Kg2
{[%clk 0:00:27.9]} 36... Rd1 {[%clk 0:00:41.4]} 37. Kf3 {[%clk 0:00:22]} 37...
Nc6 {[%clk 0:00:40.4]} 38. Be3 {[%clk 0:00:21.2]} 38... Re1 {[%clk 0:00:34.1]}
39. Rfg2 {[%clk 0:00:20.8]} 39... e4+ {[%clk 0:00:32]} 40. Rxe4 {[%clk
0:00:18.9]} 40... Ne5+ {[%clk 0:00:31.6]} 41. Rxe5 {[%clk 0:00:18.4]} 41... fxe5
{[%clk 0:00:31.3]} 42. h5 {[%clk 0:00:18.3]} 42... e4+ {[%clk 0:00:26.9]} 43.
Kf4 {[%clk 0:00:17.5]} 43... Rf1+ {[%clk 0:00:27.2]} 44. Rf2 {[%clk 0:00:17.8]}
44... Rxf2+ {[%clk 0:00:25.9]} 45. Bxf2 {[%clk 0:00:17.8]} 45... Re8 {[%clk
0:00:14.8]} 46. g6+ {[%clk 0:00:17.2]} 46... Kg7 {[%clk 0:00:14.9]} 47. Bd4+
{[%clk 0:00:16.9]} 47... Kh6 {[%clk 0:00:14.2]} 48. g7 {[%clk 0:00:15.8]} 48...
e3 {[%clk 0:00:13.5]} 49. f6 {[%clk 0:00:14.8]} 49... e2 {[%clk 0:00:13.7]} 50.
Bc3 {[%clk 0:00:14.8]} 50... e1=Q {[%clk 0:00:04.3]} 51. Bxe1 {[%clk 0:00:14.2]}
51... Rxe1 {[%clk 0:00:05.2]} 52. g8=Q {[%clk 0:00:13.5]} 52... Rf1+ {[%clk
0:00:05.6]} 53. Ke3 {[%clk 0:00:13.2]} 53... Rxf6 {[%clk 0:00:05.5]} 54. Kd3
{[%clk 0:00:09.4]} 54... Kxh5 {[%clk 0:00:04.3]} 55. Qg7 {[%clk 0:00:09.2]}
55... Rd6+ {[%clk 0:00:03]} 56. Ke2 {[%clk 0:00:09.2]} 56... h6 {[%clk
0:00:02.5]} 57. Qxc7 {[%clk 0:00:08.6]} 57... Re6+ {[%clk 0:00:02]} 58. Kd2
{[%clk 0:00:08.8]} 58... Rg6 {[%clk 0:00:02.8]} 59. Kc1 {[%clk 0:00:08.9]} 59...
Kg5 {[%clk 0:00:03.2]} 60. Kb2 {[%clk 0:00:09.3]} 60... h5 {[%clk 0:00:04.1]}
61. Qg3+ {[%clk 0:00:08.9]} 61... Kh6 {[%clk 0:00:05]} 62. Qf4+ {[%clk
0:00:09.1]} 62... Kh7 {[%clk 0:00:05.2]} 63. Qh4 {[%clk 0:00:09.3]} 63... Kh6
{[%clk 0:00:05.5]} 64. c3 {[%clk 0:00:08.5]} 64... Rg4 {[%clk 0:00:05.5]} 65.
Qf6+ {[%clk 0:00:08.7]} 65... Rg6 {[%clk 0:00:06.1]} 66. Qf4+ {[%clk 0:00:08.6]}
66... Kg7 {[%clk 0:00:06.1]} 67. b4 {[%clk 0:00:08.6]} 67... axb4 {[%clk
0:00:05.8]} 68. cxb4 {[%clk 0:00:09.5]} 68... Rg2+ {[%clk 0:00:05.8]} 69. Kb3
{[%clk 0:00:09.7]} 69... Rg4 {[%clk 0:00:06.4]} 70. Qe5+ {[%clk 0:00:09.2]}
70... Kg6 {[%clk 0:00:06.5]} 71. Qe6+ {[%clk 0:00:09.2]} 71... Kg5 {[%clk
0:00:06.8]} 72. Qxb6 {[%clk 0:00:09.1]} 72... h4 {[%clk 0:00:07.7]} 73. Qd8+
{[%clk 0:00:09.6]} 73... Kh5 {[%clk 0:00:07.9]} 74. Qh8+ {[%clk 0:00:09.9]}
74... Kg5 {[%clk 0:00:08.2]} 75. a5 {[%clk 0:00:10.8]} 75... Rg3+ {[%clk
0:00:08.7]} 76. Ka4 {[%clk 0:00:10.8]} 76... h3 {[%clk 0:00:09.5]} 77. a6 {[%clk
0:00:10.8]} 77... Kg4 {[%clk 0:00:09.1]} 78. a7 {[%clk 0:00:10.3]} 78... Rg1
{[%clk 0:00:10]} 79. a8=Q {[%clk 0:00:09.4]} 79... Ra1+ {[%clk 0:00:09.7]} 80.
Qxa1 {[%clk 0:00:09.4]} 80... h2 {[%clk 0:00:09]} 81. Q1h1 {[%clk 0:00:09.7]}
81... Kf4 {[%clk 0:00:08.1]} 82. Qae4+ {[%clk 0:00:09.5]} 82... Kg5 {[%clk
0:00:09]} 83. Qhg2+ {[%clk 0:00:09.6]} 83... Kf6 {[%clk 0:00:09.9]} 84. Qgg6#
{[%clk 0:00:09]} 1-0